bitfinex/quotes_BTCUSD_20250714
["timestamp","ask_amount","ask_price","bid_price","bid_amount"]
[1752472938383,0.08642993,122250.0,122240.0,0.13504292]
[1752472939491,0.08642993,122250.0,122240.0,0.54317333]
[1752472939492,0.001,122250.0,122240.0,0.54317333]
[1752472939694,0.001,122250.0,122240.0,0.16754292]
[1752472941089,0.00817868,122260.0,122240.0,0.13504292]
[1752472941270,0.16836749,122260.0,122240.0,0.13504292]
[1752472941503,0.16018861,122260.0,122240.0,0.13504292]
[1752472941698,0.18472559,122260.0,122240.0,0.13504292]
[1752472941903,0.08542993,122250.0,122240.0,0.13504292]
[1752472942128,0.09056993,122250.0,122240.0,0.13504292]
[1752472942334,0.15096993,122250.0,122240.0,0.13504292]
[1752472943489,0.15914935,122250.0,122240.0,0.13504292]
[1752472943694,0.15096993,122250.0,122240.0,0.13504292]
[1752472944334,0.16732877,122250.0,122240.0,0.13504292]
[1752472944536,0.16732877,122250.0,122240.0,0.13604292]
[1752472944725,0.17550839,122250.0,122240.0,0.13604292]
[1752472945197,0.72109995,122250.0,122240.0,0.00128292]
[1752472945392,0.72109995,122250.0,122240.0,0.13596292]
[1752472945598,1.12109995,122250.0,122240.0,0.13596292]
[1752472946241,0.72109995,122250.0,122240.0,0.13596292]
[1752472947391,0.72209995,122250.0,122240.0,0.00128292]
[1752472947601,0.72209995,122250.0,122240.0,0.00028292]
[1752472947811,0.72209995,122250.0,122240.0,0.13492292]
[1752472948012,0.72309995,122250.0,122240.0,0.13492292]
[1752472950446,0.72309995,122250.0,122240.0,0.00028292]
[1752472950649,0.72309995,122250.0,122240.0,0.13480292]
[1752472951031,0.72309995,122250.0,122240.0,0.00028292]
[1752472951166,0.72309995,122250.0,122240.0,0.13480292]
[1752472951774,0.72309995,122250.0,122240.0,0.13476292]
[1752472952209,0.34746954,122250.0,122240.0,0.00028292]
[1752472952366,0.34746954,122250.0,122240.0,0.13476292]
[1752472952807,0.71492026,122250.0,122240.0,0.13484292]
[1752472954682,0.76492026,122250.0,122240.0,0.00028292]
[1752472954891,0.76492026,122250.0,122240.0,0.13484292]
[1752472955145,0.71492026,122250.0,122240.0,0.13484292]
[1752472955389,0.76492026,122250.0,122240.0,0.00028292]
[1752472955607,0.76492026,122250.0,122240.0,0.13480292]
[1752472956345,1.12749828,122250.0,122240.0,0.13480292]
[1752472957030,0.5922339,122240.0,122230.0,0.1962]
[1752472957246,0.5922339,122240.0,122230.0,0.1963523]
[1752472957247,1.05531424,122240.0,122230.0,0.1963523]
[1752472957495,0.24844796,122230.0,122220.0,0.0002]
[1752472957715,1.07730632,122230.0,122220.0,0.00070806]
[1752472957943,1.15254864,122230.0,122220.0,0.00070806]
[1752472958364,1.15254864,122230.0,122220.0,0.13518806]
[1752472958805,1.12730632,122230.0,122220.0,0.00070806]
[1752472959020,1.1047283,122230.0,122220.0,0.13518806]
[1752472959914,1.1067283,122230.0,122220.0,0.13518806]
[1752472960169,1.1067283,122230.0,122220.0,0.00070806]
[1752472960422,1.1067283,122230.0,122220.0,0.13514806]
[1752472960655,0.69127898,122230.0,122220.0,0.00070806]
[1752472960864,0.69127898,122230.0,122220.0,0.13514806]
[1752472961083,0.38866285,122220.0,122200.0,9.99969801]
[1752472961289,0.08542993,122210.0,122200.0,9.99969801]
[1752472961468,0.08542993,122210.0,122200.0,9.99925963]
[1752472962370,0.08542993,122210.0,122200.0,10.13469963]
[1752472962788,0.08542993,122210.0,122200.0,10.00025963]
[1752472963004,0.08542993,122210.0,122200.0,10.13369963]
[1752472963424,0.09361203,122210.0,122200.0,10.13369963]
[1752472963635,0.08542993,122210.0,122200.0,10.13369963]
[1752472964051,0.08542993,122210.0,122200.0,9.99925963]
[1752472964272,0.08542993,122210.0,122200.0,10.13369963]
[1752472964904,0.08542993,122210.0,122200.0,10.40599004]
[1752472965114,0.08542993,122210.0,122200.0,10.56133004]
[1752472965954,0.08542993,122210.0,122200.0,10.56137004]
[1752472966164,0.08542993,122210.0,122200.0,10.18569963]
[1752472966377,0.08542993,122210.0,122200.0,10.56133004]
[1752472966585,0.08542993,122210.0,122200.0,10.05125963]
[1752472966812,0.08542993,122210.0,122200.0,10.18569963]
[1752472967241,0.08542993,122210.0,122200.0,10.13369963]
[1752472967454,0.08542993,122210.0,122200.0,9.99925963]
[1752472967677,0.08542993,122210.0,122200.0,10.03105963]
[1752472967889,0.08542993,122210.0,122200.0,10.16549963]
[1752472969027,0.08542993,122210.0,122200.0,10.03105963]
[1752472969233,0.08542993,122210.0,122200.0,10.13369963]
[1752472973037,0.08542993,122210.0,122200.0,10.51892828]
[1752472974258,0.12042993,122210.0,122200.0,10.13369963]
[1752472974468,0.11722993,122210.0,122200.0,10.13369963]
[1752472974912,0.11722993,122210.0,122200.0,9.99925963]
[1752472975095,0.11722993,122210.0,122200.0,10.13369963]
[1752472976143,0.12042993,122210.0,122200.0,9.99925963]
[1752472976326,0.12042993,122210.0,122200.0,10.13369963]
[1752472976550,0.56532527,122210.0,122200.0,9.99925963]
[1752472976745,0.74534312,122210.0,122200.0,10.13369963]
[1752472976959,0.74534305,122210.0,122200.0,9.99925963]
[1752472977158,0.72897879,122210.0,122200.0,10.13369963]
[1752472977383,0.73533721,122210.0,122200.0,10.13369963]
[1752472978147,0.74533721,122210.0,122200.0,10.13369963]
[1752472979038,0.73715471,122210.0,122200.0,10.13369963]
[1752472979487,0.74533694,122210.0,122200.0,9.99925963]
[1752472979694,0.16554993,122210.0,122200.0,10.26813963]
[1752472979896,0.17171203,122210.0,122200.0,10.26813963]
[1752472980103,0.16352993,122210.0,122200.0,10.26813963]
[1752472980326,0.12722993,122210.0,122200.0,10.26813963]
[1752472980530,0.16202993,122210.0,122200.0,10.26813963]
[1752472980755,0.17021196,122210.0,122200.0,10.26813963]
[1752472980957,0.18657648,122210.0,122200.0,10.26813963]
[1752472981165,0.18870642,122210.0,122200.0,10.26813963]
[1752472981377,0.18870675,122210.0,122200.0,10.26813963]
[1752472981554,0.19688925,122210.0,122200.0,10.26813963]
[1752472982096,0.36054244,122210.0,122200.0,10.26813963]
[1752472982298,0.36054244,122210.0,122200.0,10.26808868]
[1752472982509,0.35236014,122210.0,122200.0,10.26808868]
[1752472983161,0.34417751,122210.0,122200.0,10.26808868]
[1752472983343,0.35192646,122210.0,122200.0,10.26808868]
[1752472983586,0.34374383,122210.0,122200.0,10.26808868]
[1752472983795,0.35192646,122210.0,122200.0,10.26808868]
[1752472984249,0.35828495,122210.0,122200.0,9.99920868]
[1752472984470,0.35828495,122210.0,122200.0,10.13364868]
[1752472985108,0.36828495,122210.0,122200.0,10.13364868]
[1752472986429,0.3537441,122210.0,122200.0,9.99920868]
[1752472986643,0.10499625,122210.0,122200.0,10.37545073]
[1752472986876,0.10499625,122210.0,122200.0,10.13364868]
[1752472987129,0.10499625,122210.0,122200.0,10.40725073]
[1752472987335,0.10499625,122210.0,122200.0,10.56259073]
[1752472988618,0.10499625,122210.0,122200.0,10.56459073]
[1752472988834,0.10499625,122210.0,122200.0,10.56559073]
[1752472989254,0.10499625,122210.0,122200.0,10.18934868]
[1752472990318,0.10499625,122210.0,122200.0,10.16844868]
[1752472990538,0.10499625,122210.0,122200.0,10.04643172]
[1752472990764,0.10499625,122210.0,122200.0,10.01463172]
[1752472991645,0.10499625,122210.0,122200.0,10.06713172]
[1752472992946,0.02,122210.0,122200.0,10.06713172]
[1752472994633,0.02,122210.0,122200.0,9.93269172]
[1752472994856,0.02,122210.0,122200.0,10.06713172]
[1752472995059,0.02,122210.0,122200.0,10.04623172]
[1752472995266,0.09542993,122210.0,122200.0,9.88019172]
[1752472995478,0.55779638,122210.0,122200.0,9.88019172]
[1752472995681,0.72144976,122210.0,122200.0,9.88019172]
[1752472995924,0.73599061,122210.0,122200.0,9.88019172]
[1752472996128,0.73599061,122210.0,122200.0,10.01463172]
[1752472996968,0.73599061,122210.0,122200.0,9.88019172]
[1752472997595,0.73599061,122210.0,122200.0,10.01463172]
[1752472998208,0.35974856,122210.0,122200.0,10.01463172]
[1752472998409,0.73599061,122210.0,122200.0,10.01463172]
[1752472998617,0.35974856,122210.0,122200.0,10.01463172]
[1752472998850,1.12599014,122210.0,122200.0,9.88019172]
[1752472999060,0.76611262,122210.0,122200.0,9.88019172]
[1752472999267,0.76611262,122210.0,122200.0,10.01463172]
[1752472999470,0.75793092,122210.0,122200.0,10.01463172]
[1752472999643,0.74974856,122210.0,122200.0,10.01463172]
[1752473000463,0.74156606,122210.0,122200.0,10.01463172]
[1752473000849,1.11780811,122210.0,122200.0,10.01463172]
[1752473001867,1.11780811,122210.0,122200.0,10.01263172]
[1752473002078,1.11880811,122210.0,122200.0,10.01263172]
[1752473002482,1.11906143,122210.0,122200.0,10.01163172]
[1752473003172,0.75100174,122210.0,122200.0,9.87719172]
[1752473003415,1.12824379,122210.0,122200.0,10.01159172]
[1752473003621,1.1361731,122210.0,122200.0,10.0113384]
[1752473003970,1.12799007,122210.0,122200.0,10.0113384]
[1752473004182,1.13617263,122210.0,122200.0,10.0113384]
[1752473004588,0.75993058,122210.0,122200.0,10.0113384]
[1752473005158,0.75174802,122210.0,122200.0,10.0113384]
[1752473005413,0.75993052,122210.0,122200.0,10.0113384]
[1752473005618,0.76811315,122210.0,122200.0,10.0113384]
[1752473005824,0.75993099,122210.0,122200.0,10.0113384]
[1752473006405,1.12799041,122210.0,122200.0,10.0113384]
[1752473006818,1.12799007,122210.0,122200.0,10.0113384]
[1752473007023,1.13617257,122210.0,122200.0,10.0113384]
[1752473007242,1.12799007,122210.0,122200.0,10.0113384]
[1752473007462,1.13617257,122210.0,122200.0,10.0113384]
[1752473008070,1.12799007,122210.0,122200.0,10.0113384]
[1752473008278,1.13617244,122210.0,122200.0,10.0113384]
[1752473008503,1.14435507,122210.0,122200.0,10.0113384]
[1752473008690,1.12799001,122210.0,122200.0,10.0113384]
[1752473008946,1.144355,122210.0,122200.0,10.0113384]
[1752473009148,1.13617284,122210.0,122200.0,10.0113384]
[1752473009979,1.14439044,122210.0,122200.0,9.8769384]
[1752473010193,1.14439044,122210.0,122200.0,10.0113384]
[1752473010601,1.13617284,122210.0,122200.0,10.0113384]
[1752473013057,1.14537391,122210.0,122200.0,9.8769384]
[1752473013262,0.97353823,122210.0,122200.0,10.0113384]
[1752473013468,1.14537318,122210.0,122200.0,10.0113384]
[1752473013715,1.14537318,122210.0,122200.0,9.8769384]
[1752473013913,0.94050305,122210.0,122200.0,9.8769384]
[1752473014121,0.53737305,122210.0,122200.0,10.0112984]
[1752473014339,0.08742993,122210.0,122200.0,10.0112984]
[1752473017042,0.11782993,122210.0,122200.0,9.8769384]
[1752473017267,0.7278871,122210.0,122200.0,9.8769384]
[1752473017469,0.74242855,122210.0,122200.0,9.8769384]
[1752473017687,0.72606415,122210.0,122200.0,9.8769384]
[1752473017887,0.72606415,122210.0,122200.0,10.0112984]
[1752473018108,1.12606415,122210.0,122200.0,10.0112984]
[1752473018933,0.72606415,122210.0,122200.0,10.0112984]
[1752473019358,0.71788165,122210.0,122200.0,10.0112984]
[1752473019598,0.71788165,122210.0,122200.0,9.8769384]
[1752473020007,0.71788165,122210.0,122200.0,10.0112584]
[1752473023186,0.34165613,122210.0,122200.0,10.0112584]
[1752473023405,0.71788125,122210.0,122200.0,10.0112584]
[1752473023630,0.35802012,122210.0,122200.0,9.8769384]
[1752473023856,0.55527993,122210.0,122200.0,10.0112584]
[1752473024071,0.08742993,122210.0,122200.0,10.2169384]
[1752473024282,0.08742993,122210.0,122200.0,10.3512584]
[1752473025159,0.08642993,122210.0,122200.0,10.3512184]
[1752473025374,0.70494033,122210.0,122200.0,9.8769384]
[1752473025615,0.15192993,122210.0,122200.0,10.0112184]
[1752473025811,0.16829426,122210.0,122200.0,10.0112184]
[1752473026021,0.33689698,122210.0,122200.0,10.0112184]
[1752473026173,0.34507934,122210.0,122200.0,10.0112184]
[1752473026588,0.33689698,122210.0,122200.0,10.0112184]
[1752473026806,0.17324426,122210.0,122200.0,10.0112184]
[1752473027011,0.17324419,122210.0,122200.0,10.0112184]
[1752473027212,0.16506203,122210.0,122200.0,10.0112184]
[1752473027507,0.15787993,122210.0,122200.0,10.0112184]
[1752473027706,0.16706196,122210.0,122200.0,9.8769384]
[1752473027911,0.15392993,122210.0,122200.0,10.0112184]
[1752473028230,0.12062993,122210.0,122200.0,10.0112184]
[1752473028594,1.24357993,122210.0,122200.0,10.0112184]
[1752473028796,1.24357993,122210.0,122200.0,9.8769384]
[1752473029035,1.24357993,122210.0,122200.0,10.0112184]
[1752473029885,1.24357993,122210.0,122200.0,10.0111784]
[1752473030468,1.45144481,122210.0,122200.0,9.8769384]
[1752473030670,1.28779209,122210.0,122200.0,10.0111784]
[1752473031012,1.27667993,122210.0,122200.0,9.8769384]
[1752473031218,1.27667993,122210.0,122200.0,10.0111784]
[1752473032156,1.30415648,122210.0,122200.0,9.8769384]
[1752473032358,1.4698292,122210.0,122200.0,10.0111784]
[1752473032786,1.4780117,122210.0,122200.0,10.0111784]
[1752473032988,1.4698292,122210.0,122200.0,10.0111784]
[1752473033401,1.4780117,122210.0,122200.0,10.0111784]
[1752473033610,1.4698292,122210.0,122200.0,10.0111784]
[1752473033815,1.46982914,122210.0,122200.0,10.0111784]
[1752473034058,1.29799412,122210.0,122200.0,9.8769384]
[1752473034277,1.29799412,122210.0,122200.0,10.0111784]
[1752473034673,1.27960993,122210.0,122200.0,10.0111784]
[1752473034800,1.29597419,122210.0,122200.0,10.0111784]
[1752473035615,1.28779196,122210.0,122200.0,10.0111784]
[1752473035814,1.29597412,122210.0,122200.0,10.0111784]
[1752473036240,1.27667993,122210.0,122200.0,9.8769384]
[1752473036408,1.24357993,122210.0,122200.0,10.0111384]
[1752473037051,1.25176209,122210.0,122200.0,10.0111384]
[1752473037255,1.25176196,122210.0,122200.0,10.0111384]
[1752473037459,1.24357993,122210.0,122200.0,10.0111384]
[1752473037658,1.46942973,122210.0,122200.0,10.0111384]
[1752473037881,1.47761223,122210.0,122200.0,9.8769384]
[1752473038122,1.46943007,122210.0,122200.0,9.8769384]
[1752473038328,1.85201408,122210.0,122200.0,9.8769384]
[1752473038752,1.85201408,122210.0,122200.0,10.0110984]
[1752473039638,1.84383165,122210.0,122200.0,10.0110984]
[1752473040186,1.84383165,122210.0,122200.0,9.8769384]
[1752473040392,1.86907397,122210.0,122200.0,10.0110984]
[1752473040797,1.86907397,122210.0,122200.0,9.8769384]
[1752473040996,2.42528867,122210.0,122200.0,9.8769384]
[1752473041201,2.45024045,122210.0,122200.0,10.0110984]
[1752473041474,2.45024045,122210.0,122200.0,9.8769384]
[1752473041628,2.86045415,122210.0,122200.0,9.39503951]
[1752473041823,2.79591267,122210.0,122200.0,8.91654465]
[1752473042193,2.79491267,122210.0,122200.0,8.70362976]
[1752473042407,2.92907267,122210.0,122200.0,8.61450232]
[1752473042620,2.92907267,122210.0,122200.0,8.51828744]
[1752473042832,2.70422265,122210.0,122200.0,8.42776325]
[1752473043043,2.68716535,122210.0,122200.0,8.42776325]
[1752473043254,2.38616535,122210.0,122200.0,8.42776325]
[1752473043458,2.38616535,122210.0,122200.0,8.56188325]
[1752473043678,2.55404535,122210.0,122200.0,8.56188325]
[1752473043883,2.93027087,122210.0,122200.0,8.42776325]
[1752473044101,3.06743087,122210.0,122200.0,8.56192325]
[1752473044277,2.93127087,122210.0,122200.0,8.05475386]
[1752473044520,3.08871181,122210.0,122200.0,8.0962793]
[1752473044727,2.96159181,122210.0,122200.0,7.67053947]
[1752473044930,2.98560868,122210.0,122200.0,7.41972269]
[1752473045136,3.11972868,122210.0,122200.0,7.2363604]
[1752473045319,3.11972868,122210.0,122200.0,7.13869103]
[1752473045573,3.11972868,122210.0,122200.0,6.95923285]
[1752473045790,3.20515861,122210.0,122200.0,6.74562681]
[1752473046002,2.45270757,122210.0,122200.0,6.50814908]
[1752473046210,3.11972868,122210.0,122200.0,6.50814908]
[1752473046641,3.09840774,122210.0,122200.0,6.20436729]
[1752473047052,1.9118367,122210.0,122200.0,6.20436729]
[1752473047264,3.09840774,122210.0,122200.0,6.33848729]
[1752473047694,2.96428774,122210.0,122200.0,5.9683823]
[1752473047909,2.58806222,122210.0,122200.0,5.9683823]
[1752473048146,2.26784852,122210.0,122200.0,5.9683823]
[1752473048409,2.21784852,122210.0,122200.0,5.9683823]
[1752473048648,2.4792908,122210.0,122200.0,5.9683823]
[1752473048899,2.1392908,122210.0,122200.0,5.9683823]
[1752473049098,2.4672908,122210.0,122200.0,5.9683823]
[1752473049520,2.4712908,122210.0,122200.0,5.9683823]
[1752473049931,2.48583165,122210.0,122200.0,5.8342623]
[1752473050339,2.86205717,122210.0,122200.0,5.9683423]
[1752473050562,2.86805717,122210.0,122200.0,5.9683423]
[1752473051190,2.94264313,122210.0,122200.0,5.8342623]
[1752473051394,2.94264313,122210.0,122200.0,5.9683423]
[1752473051607,2.96718713,122210.0,122200.0,5.9683423]
[1752473052025,2.94260117,122210.0,122200.0,5.82608316]
[1752473052233,2.96392211,122210.0,122200.0,5.50455298]
[1752473052457,0.05769602,122190.0,122070.0,0.0002]
[1752473052670,0.46382699,122080.0,122070.0,0.00316]
[1752473052887,0.43655858,122080.0,122070.0,0.2373]
[1752473053102,0.19657974,122090.0,122070.0,0.2701]
[1752473053315,0.19657974,122090.0,122080.0,0.0641]
[1752473053316,0.20475906,122090.0,122080.0,0.0641]
[1752473053524,0.00819014,122090.0,122080.0,0.06706]
[1752473053732,0.10181027,122090.0,122080.0,0.06706]
[1752473053938,0.0936706,122090.0,122080.0,0.06706]
[1752473054150,0.28205493,122090.0,122080.0,0.06706]
[1752473054364,0.27386452,122090.0,122080.0,0.06706]
[1752473054543,0.27386452,122090.0,122080.0,0.06806]
[1752473054779,0.28205486,122090.0,122080.0,0.06806]
[1752473054991,0.2902454,122090.0,122080.0,0.06806]
[1752473055203,0.28205486,122090.0,122080.0,0.06806]
[1752473055412,0.26567432,122090.0,122080.0,0.06806]
[1752473055640,0.25748418,122090.0,122080.0,0.06806]
[1752473055842,0.2820552,122090.0,122080.0,0.06906]
[1752473056050,0.28205513,122090.0,122080.0,0.06906]
[1752473056471,0.0936706,122090.0,122080.0,0.06906]
[1752473056675,0.1018608,122090.0,122080.0,0.06906]
[1752473057306,0.0936706,122090.0,122080.0,0.06906]
[1752473057486,0.10186074,122090.0,122080.0,0.06906]
[1752473057729,0.0936706,122090.0,122080.0,0.06906]
[1752473057937,0.08548053,122090.0,122080.0,0.06906]
[1752473058814,0.08548053,122090.0,122080.0,0.44528552]
[1752473059045,0.08548053,122090.0,122080.0,0.06906]
[1752473059526,0.08548053,122090.0,122080.0,0.44428552]
[1752473059731,0.08548053,122090.0,122080.0,0.44528552]
[1752473059938,0.08548053,122090.0,122080.0,0.44428552]
[1752473060142,0.08548053,122090.0,122080.0,0.06806]
[1752473060350,0.08548053,122090.0,122080.0,0.07006]
[1752473060585,0.10798053,122090.0,122080.0,0.07006]
[1752473060803,0.18026828,122040.0,122030.0,0.00316]
[1752473061018,0.16386746,122050.0,122030.0,0.00316]
[1752473061230,0.17205584,122080.0,122040.0,0.40812552]
[1752473061436,0.44462224,122080.0,122050.0,0.37918552]
[1752473061644,0.21100492,122080.0,122060.0,0.19628]
[1752473061862,0.08542993,122070.0,122060.0,0.23114]
[1752473062073,0.08542993,122070.0,122060.0,0.49634]
[1752473062281,0.25746175,122070.0,122060.0,0.49634]
[1752473062484,0.29022881,122070.0,122060.0,0.4993]
[1752473062690,0.27384491,122070.0,122060.0,0.4993]
[1752473063366,0.26565323,122070.0,122060.0,0.4993]
[1752473063573,0.08542993,122070.0,122060.0,0.4993]
[1752473063780,0.09562148,122070.0,122060.0,0.4993]
[1752473063957,0.09562141,122070.0,122060.0,0.4993]
[1752473064165,0.08742993,122070.0,122060.0,0.4993]
[1752473064601,0.08742993,122070.0,122060.0,0.5293]
[1752473064805,0.08842993,122070.0,122060.0,0.5293]
[1752473066248,0.08542993,122070.0,122060.0,0.5293]
[1752473068765,0.08842993,122070.0,122060.0,0.5293]
[1752473070061,0.26046189,122070.0,122060.0,0.4993]
[1752473070274,0.09662134,122070.0,122060.0,0.4993]
[1752473070471,0.11300457,122070.0,122060.0,0.4993]
[1752473070709,0.09662134,122070.0,122060.0,0.4993]
[1752473070892,0.10481295,122070.0,122060.0,0.4993]
[1752473071461,0.08842993,122070.0,122060.0,0.4993]
[1752473071665,0.09662134,122070.0,122060.0,0.4993]
[1752473072082,0.10481295,122070.0,122060.0,0.4993]
[1752473072284,0.08842993,122070.0,122060.0,0.4993]
[1752473073061,0.08842993,122070.0,122060.0,0.90742552]
[1752473073499,5.059e-05,122080.0,122070.0,0.4032]
[1752473073700,5.059e-05,122080.0,122070.0,0.77942552]
[1752473073902,5.059e-05,122080.0,122070.0,0.78249552]
[1752473078622,0.2455974,122120.0,122090.0,0.40922552]
[1752473078825,0.08542993,122110.0,122100.0,0.29964]
[1752473079038,0.08542993,122110.0,122100.0,0.30271]
[1752473080424,0.09361879,122110.0,122100.0,0.27111]
[1752473080628,0.10180766,122110.0,122100.0,0.27111]
[1752473080860,0.09361873,122110.0,122100.0,0.27111]
[1752473081276,0.08542993,122110.0,122100.0,0.27111]
[1752473081484,0.08542993,122110.0,122100.0,0.27321]
[1752473082344,0.08742993,122110.0,122100.0,0.27321]
[1752473082951,0.09561866,122110.0,122100.0,0.2815185]
[1752473083101,0.08742993,122110.0,122100.0,0.2815185]
[1752473083311,0.08742993,122110.0,122100.0,0.27321]
[1752473083522,0.08742993,122110.0,122100.0,0.46953]
[1752473084921,0.08742993,122110.0,122100.0,0.4777182]
[1752473085547,0.08742993,122110.0,122100.0,0.5428182]
[1752473086389,0.08542993,122110.0,122100.0,0.5428182]
[1752473086594,0.09361866,122110.0,122100.0,0.5108182]
[1752473086797,0.08542993,122110.0,122100.0,0.5108182]
[1752473088113,0.08542993,122110.0,122100.0,0.4777182]
[1752473088230,0.26761447,122110.0,122100.0,0.4663]
[1752473088424,0.08542993,122110.0,122100.0,0.46937]
[1752473088619,0.08542993,122110.0,122100.0,0.50207]
[1752473088830,0.08542993,122110.0,122100.0,0.53317]
[1752473089938,0.08542993,122110.0,122100.0,0.90939552]
[1752473090145,5.079e-05,122120.0,122110.0,0.0321]
[1752473090347,0.08548072,122120.0,122110.0,0.44764285]
[1752473090549,0.08548072,122120.0,122110.0,0.44559552]
[1752473091295,0.08548072,122120.0,122110.0,0.06937]
[1752473091844,0.08648072,122120.0,122110.0,0.06937]
[1752473092046,0.27481904,122120.0,122110.0,0.06937]
[1752473092252,0.27481904,122120.0,122100.0,0.19632]
[1752473092253,0.18835434,122110.0,122100.0,0.19632]
[1752473092452,0.267615,122110.0,122100.0,0.3302]
[1752473092882,0.26761473,122110.0,122100.0,0.3302]
[1752473093110,0.26761473,122110.0,122100.0,0.19632]
[1752473093324,0.26761473,122110.0,122100.0,0.3302]
[1752473093548,0.09563866,122110.0,122100.0,0.19632]
[1752473093739,0.08744993,122110.0,122100.0,0.19842]
[1752473093946,0.09361873,122110.0,122100.0,0.33537]
[1752473094312,0.09361866,122110.0,122100.0,0.33537]
[1752473094628,0.08542993,122110.0,122100.0,0.33537]
[1752473094824,0.09361866,122110.0,122100.0,0.33537]
[1752473095030,0.10180752,122110.0,122100.0,0.33537]
[1752473095230,0.08542993,122110.0,122100.0,0.33537]
[1752473095431,0.09361866,122110.0,122100.0,0.33537]
[1752473095633,0.08542993,122110.0,122100.0,0.33537]
[1752473096654,0.08542993,122110.0,122100.0,0.33533]
[1752473097621,0.08534496,122110.0,122100.0,0.36743]
[1752473100827,0.26550929,122110.0,122100.0,0.20149]
[1752473101049,0.64374548,122110.0,122100.0,0.19632]
[1752473101294,0.64682548,122110.0,122100.0,0.19632]
[1752473101704,0.67982548,122110.0,122100.0,0.19632]
[1752473101907,0.00819081,122080.0,122070.0,0.00321]
[1752473102111,0.28202097,122080.0,122070.0,0.00534]
[1752473102336,0.65824642,122080.0,122070.0,0.13593]
[1752473102743,0.26563861,122080.0,122070.0,0.13593]
[1752473102946,0.27382962,122080.0,122070.0,0.13593]
[1752473103163,0.28202076,122080.0,122070.0,0.13643888]
[1752473103373,0.27382962,122080.0,122070.0,0.13643888]
[1752473103591,0.2820207,122080.0,122070.0,0.13643888]
[1752473103819,0.27382962,122080.0,122070.0,0.13643888]
[1752473104031,0.2820207,122080.0,122070.0,0.13643888]
[1752473104484,0.2820207,122080.0,122070.0,0.13843888]
[1752473104485,0.27382962,122080.0,122070.0,0.13843888]
[1752473104774,0.27382962,122080.0,122070.0,0.13643888]
[1752473105023,0.27382962,122080.0,122070.0,0.13743888]
[1752473105256,0.27382962,122080.0,122070.0,0.00150888]
[1752473105257,0.70737466,122080.0,122070.0,0.00150888]
[1752473105487,0.67707466,122080.0,122070.0,0.13426888]
[1752473105733,0.64387466,122080.0,122070.0,0.13426888]
[1752473106162,0.26764914,122080.0,122070.0,0.13426888]
[1752473106892,0.27684042,122080.0,122070.0,0.13426888]
[1752473107093,0.26864914,122080.0,122070.0,0.13426888]
[1752473107346,0.08642993,122080.0,122070.0,0.00263888]
[1752473107572,0.09462081,122080.0,122070.0,0.13960888]
[1752473107786,0.09562081,122080.0,122070.0,0.13960888]
[1752473108003,0.09562081,122080.0,122070.0,0.13639888]
[1752473108231,0.27784016,122080.0,122070.0,0.13639888]
[1752473108460,0.27784009,122080.0,122070.0,0.13639888]
[1752473108932,0.26964881,122080.0,122070.0,0.13639888]
[1752473109148,0.27783995,122080.0,122070.0,0.13639888]
[1752473109581,0.28603116,122080.0,122070.0,0.13639888]
[1752473109801,0.27783995,122080.0,122070.0,0.13639888]
[1752473110284,0.27783995,122080.0,122070.0,0.13635888]
[1752473110512,0.08943993,122080.0,122070.0,0.13635888]
[1752473110733,0.10582168,122080.0,122070.0,0.13635888]
[1752473110953,0.08742993,122080.0,122070.0,0.13956888]
[1752473111206,0.26763874,122080.0,122070.0,0.13956888]
[1752473111488,0.27783988,122080.0,122070.0,0.13956888]
[1752473111714,0.26145773,122080.0,122070.0,0.13956888]
[1752473111948,0.27783962,122080.0,122070.0,0.13956888]
[1752473112178,0.27783955,122080.0,122070.0,0.13956888]
[1752473112414,0.09763074,122080.0,122070.0,0.13956888]
[1752473112657,0.08742993,122080.0,122070.0,0.13956888]
[1752473112889,0.10381168,122080.0,122070.0,0.13956888]
[1752473113111,0.09562074,122080.0,122070.0,0.13956888]
[1752473113596,0.27582968,122080.0,122070.0,0.00584888]
[1752473113830,0.09763074,122080.0,122070.0,0.13952888]
[1752473114077,0.26763867,122080.0,122070.0,0.13952888]
[1752473114292,0.27582975,122080.0,122070.0,0.13952888]
[1752473114975,0.09562074,122080.0,122070.0,0.13952888]
[1752473115258,0.10381168,122080.0,122070.0,0.13952888]
[1752473115519,0.26763867,122080.0,122070.0,0.13952888]
[1752473115764,0.27582975,122080.0,122070.0,0.13952888]
[1752473116018,0.27783975,122080.0,122070.0,0.13952888]
[1752473116222,0.27783981,122080.0,122070.0,0.13952888]
[1752473116430,0.27783975,122080.0,122070.0,0.13952888]
[1752473116845,0.26964867,122080.0,122070.0,0.13952888]
[1752473117056,0.28603089,122080.0,122070.0,0.13631888]
[1752473117471,0.27783968,122080.0,122070.0,0.13631888]
[1752473117891,0.28603082,122080.0,122070.0,0.13631888]
[1752473118095,0.29422203,122080.0,122070.0,0.13631888]
[1752473118303,0.28603089,122080.0,122070.0,0.13631888]
[1752473118519,0.29422217,122080.0,122070.0,0.13631888]
[1752473118735,0.29422217,122080.0,122070.0,0.00263888]
[1752473118736,0.28603089,122080.0,122070.0,0.00263888]
[1752473118958,0.28603089,122080.0,122070.0,0.13623888]
[1752473119166,0.29422223,122080.0,122070.0,0.13623888]
[1752473119386,0.27779967,122080.0,122070.0,0.00263888]
[1752473119595,0.27779967,122080.0,122070.0,0.13623888]
[1752473119596,0.27779974,122080.0,122070.0,0.13623888]
[1752473119803,0.27779974,122080.0,122070.0,0.00263888]
[1752473120017,0.27779974,122080.0,122070.0,0.13944888]
[1752473120229,0.08738992,122080.0,122070.0,0.13944888]
[1752473120438,0.08738992,122080.0,122070.0,0.07104888]
[1752473120661,0.002,122080.0,122070.0,1.0544344]
[1752473121965,0.001,122080.0,122070.0,1.0544344]
[1752473122171,0.18835368,122110.0,122090.0,0.0309]
[1752473122377,0.18835368,122110.0,122100.0,0.26925]
[1752473122586,0.29217241,122110.0,122100.0,0.27246]
[1752473122834,0.29217241,122110.0,122100.0,0.26925]
[1752473123051,0.27579388,122110.0,122100.0,0.26925]
[1752473123682,0.26760475,122110.0,122100.0,0.26925]
[1752473123884,0.27579381,122110.0,122100.0,0.26925]
[1752473124239,0.28398294,122110.0,122100.0,0.26925]
[1752473124643,0.08542993,122110.0,122100.0,0.30376]
[1752473126182,0.27579406,122110.0,122100.0,0.27246]
[1752473126384,0.27579406,122110.0,122100.0,0.26925]
[1752473126685,0.65201958,122110.0,122100.0,0.26925]
[1752473127315,0.09562866,122110.0,122100.0,0.26925]
[1752473127516,0.08842993,122110.0,122100.0,0.27246]
[1752473127653,0.08842993,122110.0,122100.0,0.33516]
[1752473127654,0.08942993,122110.0,122100.0,0.33516]
[1752473128054,0.08642993,122110.0,122100.0,0.33516]
[1752473128297,0.08842993,122110.0,122100.0,0.33516]
[1752473128859,0.27060433,122110.0,122100.0,0.27246]
[1752473129062,0.28698253,122110.0,122100.0,0.27246]
[1752473129293,0.65301966,122110.0,122100.0,0.26925]
[1752473129714,0.65201966,122110.0,122100.0,0.26925]